bitfinex/quotes_SOLUSD_20250922
["timestamp","ask_amount","ask_price","bid_price","bid_amount"]
[1758584487778,0.7,220.36,220.27,15.15094804]
[1758584487978,134.9,220.38,220.29,13.59559401]
[1758584488176,134.9,220.38,220.3,0.66]
[1758584488783,134.9,220.38,220.31,4.53905859]
[1758584488993,134.9,220.38,220.32,0.66]
[1758584489375,0.7,220.38,220.32,0.66]
[1758584490093,0.7,220.38,220.31,15.88670508]
[1758584490293,0.7,220.37,220.31,16.54670508]
[1758584490974,0.7,220.37,220.33,4.53864657]
[1758584491174,0.7,220.36,220.33,4.53864657]
[1758584491586,0.7,220.35,220.29,4.53947069]
[1758584491774,0.7,220.35,220.3,13.59559401]
[1758584491972,0.7,220.34,220.3,13.59559401]
[1758584492698,0.7,220.34,220.3,14.25559401]
[1758584493797,4.53791774,220.37,220.3,4.53907123]
[1758584493991,0.7,220.33,220.3,4.53907123]
[1758584495394,0.7,220.35,220.3,5.19907123]
[1758584495594,0.7,220.34,220.3,5.19907123]
[1758584495903,0.7,220.34,220.3,4.53907123]
[1758584496804,4.53809076,220.36,220.3,4.53907123]
[1758584496990,0.7,220.35,220.3,4.53907123]
[1758584497192,0.7,220.34,220.3,4.53907123]
[1758584497799,0.7,220.34,220.3,5.19907123]
[1758584498600,0.7,220.34,220.3,4.53907123]
[1758584498903,0.7,220.33,220.3,4.53907123]
[1758584499297,0.7,220.35,220.3,4.53907123]
[1758584499496,0.7,220.34,220.3,4.53907123]
[1758584499694,0.7,220.33,220.3,4.53907123]
[1758584500195,0.7,220.35,220.3,4.53907123]
[1758584500396,0.7,220.34,220.3,4.53907123]
[1758584500885,0.7,220.36,220.31,5.1990538]
[1758584501080,34.78,220.4,220.33,13.59559401]
[1758584501301,34.78,220.4,220.33,14.25559401]
[1758584501302,0.7,220.39,220.33,14.25559401]
[1758584501694,0.7,220.38,220.33,14.25559401]
[1758584501887,0.7,220.38,220.32,13.59559401]
[1758584502093,26.7,220.38,220.33,0.66]
[1758584502289,26.0,220.38,220.34,0.66]
[1758584503109,26.0,220.38,220.34,5.19826247]
[1758584503290,26.0,220.38,220.35,0.66]
[1758584504106,0.7,220.37,220.34,4.53826247]
[1758584504804,0.7,220.36,220.28,14.25559401]
[1758584504982,0.7,220.35,220.28,14.25559401]
[1758584505190,0.7,220.35,220.28,18.79527078]
[1758584505388,0.7,220.35,220.29,0.66]
[1758584506195,61.48,220.38,220.3,13.59559401]
[1758584506390,61.48,220.38,220.31,0.66]
[1758584506712,0.7,220.38,220.31,0.66]
[1758584507098,134.9,220.4,220.31,0.66]
[1758584507398,169.7,220.4,220.32,4.53885257]
[1758584507601,0.7,220.39,220.32,5.19885257]
[1758584507993,0.7,220.38,220.32,5.19885257]
[1758584509416,0.7,220.37,220.32,4.53885257]
[1758584509600,26.7,220.36,220.32,4.53885257]
[1758584509787,0.7,220.35,220.3,4.53912609]
[1758584509990,0.7,220.35,220.3,5.19912609]
[1758584510621,0.7,220.34,220.3,4.53912609]
[1758584510819,0.7,220.34,220.3,0.66]
[1758584512423,0.7,220.34,220.31,4.53905859]
[1758584513714,26.0,220.36,220.32,0.66]
[1758584513925,26.7,220.36,220.31,4.53905859]
[1758584514231,26.7,220.36,220.31,5.19905859]
[1758584514810,0.7,220.35,220.31,5.19905859]
[1758584515002,0.7,220.35,220.31,4.53905859]
[1758584515701,0.7,220.35,220.3,15.88722679]
[1758584516025,0.7,220.35,220.3,16.54722679]
[1758584519418,134.2,220.4,220.31,14.25559401]
[1758584519624,3.05753529,220.39,220.32,0.66]
[1758584520018,0.72,220.38,220.32,0.66]
[1758584521802,0.72,220.38,220.33,4.53864657]
[1758584522125,0.72,220.38,220.33,5.19864657]
[1758584522432,1.55535403,220.43,220.33,5.19864657]
[1758584522433,0.72,220.45,220.34,14.25559401]
[1758584522608,3.77647402,220.45,220.34,15.15094804]
[1758584522924,3.77647402,220.45,220.36,13.59559401]
[1758584523223,3.77647402,220.45,220.37,0.66]
[1758584524222,0.72,220.45,220.37,0.66]
[1758584524409,0.72,220.45,220.39,13.59559401]
[1758584524717,0.72,220.46,220.4,0.66]
[1758584525821,0.72,220.46,220.41,4.53699922]
[1758584526026,0.72,220.45,220.41,4.53699922]
[1758584527701,26.0,220.47,220.41,5.19699922]
[1758584527702,0.72,220.47,220.41,5.19699922]
[1758584528920,0.72,220.47,220.41,16.53949729]
[1758584529500,0.72,220.46,220.41,4.53699922]
[1758584529701,0.72,220.45,220.4,4.53720508]
[1758584529918,0.72,220.45,220.4,5.19720508]
[1758584530118,34.78,220.48,220.41,0.66]
[1758584530328,0.72,220.46,220.41,0.66]
[1758584530702,0.72,220.45,220.41,0.66]
[1758584531313,0.72,220.45,220.42,4.53679339]
[1758584533206,0.72,220.45,220.4,4.53720508]
[1758584533424,0.72,220.45,220.4,5.19720508]
[1758584533917,0.72,220.45,220.41,0.66]
[1758584534326,134.2,220.5,220.42,14.25559401]
[1758584534508,0.72,220.5,220.43,0.66]
[1758584534928,0.72,220.5,220.44,13.59559401]
[1758584535239,0.72,220.5,220.45,4.536176]
[1758584535438,0.92,220.54,220.47,13.59559401]
[1758584535608,0.92,220.54,220.48,0.72]
[1758584537607,0.2,220.54,220.49,4.53535307]
[1758584537940,0.2,220.54,220.5,14.31559401]
[1758584538432,0.2,220.54,220.51,0.72]
[1758584539035,0.2,220.54,220.52,4.53473607]
[1758584539412,0.2,220.54,220.52,5.25473607]
[1758584543454,0.2,220.54,220.52,4.53473607]
[1758584543649,0.2,220.54,220.53,0.72]
[1758584546446,0.2,220.54,220.53,5.25453044]
[1758584547436,0.2,220.54,220.53,4.53453044]
[1758584547757,0.2,220.54,220.53,18.84012445]
[1758584549249,0.2,220.54,220.53,21.26361271]
[1758584554852,0.2,220.58,220.54,13.59559401]
[1758584555049,0.2,220.58,220.57,16.01908227]
[1758584555653,0.2,220.58,220.57,16.72908227]
[1758584555866,0.2,220.58,220.57,18.83930212]
[1758584556072,0.2,220.58,220.57,21.26279038]
[1758584556873,0.2,220.58,220.57,18.12930212]
[1758584557055,0.2,220.58,220.57,20.55279038]
[1758584558174,0.2,220.58,220.57,18.12930212]
[1758584561750,0.2,220.58,220.57,18.83930212]
[1758584562160,0.2,220.59,220.57,18.83930212]
[1758584562379,0.2,220.59,220.58,3.13348826]
[1758584562876,0.2,220.59,220.58,2.42348826]
[1758584563256,0.2,220.59,220.58,6.95699084]
[1758584563592,0.9,220.59,220.58,18.12909659]
[1758584563885,0.9,220.59,220.56,11.33463436]
[1758584564181,0.7,220.58,220.57,13.59559401]
[1758584566798,0.2,220.59,220.57,4.53370811]
[1758584566964,0.9,220.59,220.57,4.53370811]
[1758584568375,0.2,220.59,220.58,14.30559401]
[1758584568560,0.2,220.59,220.58,18.83909659]
[1758584568760,0.2,220.59,220.58,18.12909659]
[1758584571367,0.2,220.59,220.58,18.83909659]
[1758584572181,0.2,220.59,220.58,18.12909659]
[1758584573280,0.2,220.59,220.58,53.57909659]
[1758584573479,0.2,220.59,220.58,52.86909659]
[1758584575963,0.2,220.59,220.58,53.57909659]
[1758584576165,0.2,220.6,220.58,53.57909659]
[1758584576363,0.2,220.6,220.59,2.42348826]
[1758584576772,0.2,220.6,220.59,6.95678532]
[1758584578074,0.92,220.6,220.59,6.95678532]
[1758584578278,0.2,220.6,220.59,6.95678532]
[1758584580603,0.2,220.6,220.59,48.33559401]
[1758584580769,0.2,220.6,220.59,50.75908227]
[1758584580970,0.2,220.6,220.59,51.42908227]
[1758584581800,0.2,220.6,220.59,48.33559401]
[1758584582091,0.2,220.6,220.59,50.75908227]
[1758584582685,0.2,220.6,220.59,55.29237933]
[1758584586274,0.2,220.6,220.59,55.96237933]
[1758584586976,0.2,220.61,220.59,55.96237933]
[1758584587184,0.1,220.64,220.63,13.59559401]
[1758584587392,0.1,220.64,220.63,50.73908227]
[1758584588078,0.1,220.64,220.63,55.27155745]
[1758584590991,0.1,220.67,220.63,67.27274541]
[1758584591195,0.82,220.67,220.66,16.01908227]
[1758584591386,0.82,220.67,220.66,50.73908227]
[1758584591586,0.1,220.67,220.66,50.73908227]
[1758584591789,0.1,220.67,220.66,48.31559401]
[1758584591987,0.1,220.67,220.66,50.73908227]
[1758584592785,0.1,220.67,220.66,16.68908227]
[1758584592989,0.2,220.7,220.66,67.29058865]
[1758584593188,0.2,220.7,220.69,16.01908227]
[1758584593499,0.2,220.7,220.69,50.75908227]
[1758584593696,0.2,220.7,220.69,51.42908227]
[1758584593904,0.2,220.7,220.69,49.00559401]
[1758584594106,0.2,220.7,220.69,51.42908227]
[1758584595201,0.2,220.72,220.7,13.59559401]
[1758584595399,0.2,220.72,220.7,14.26559401]
[1758584595580,0.2,220.72,220.71,2.42348826]
[1758584595780,0.2,220.72,220.71,37.20348826]
[1758584597005,0.2,220.72,220.71,41.73432057]
[1758584598002,0.1,220.77,220.72,26.0]
[1758584598180,0.1,220.77,220.76,2.42348826]
[1758584598380,0.1,220.77,220.76,37.22348826]
[1758584598999,0.1,220.77,220.76,41.75329438]
[1758584600402,0.71,220.81,220.77,13.59559401]
[1758584600703,0.71,220.81,220.8,16.01908227]
[1758584600897,0.71,220.81,220.8,50.81908227]
[1758584601100,0.71,220.81,220.8,55.34806777]
[1758584603927,0.1,220.82,220.8,55.34806777]
[1758584604284,0.81,220.82,220.8,55.34806777]
[1758584605411,0.81,220.82,220.8,68.72560906]
[1758584605726,0.81,220.82,220.8,13.37754129]
[1758584605891,0.81,220.82,220.78,5.20920166]
[1758584605892,0.1,220.82,220.78,34.8]
[1758584606085,0.1,220.82,220.78,39.32937965]
[1758584606394,0.71,220.81,220.78,39.32937965]
[1758584606721,0.71,220.8,220.78,39.32937965]
[1758584606898,0.71,220.79,220.78,4.52937965]
[1758584607090,0.71,220.79,220.78,13.49570504]
[1758584607292,0.71,220.79,220.75,13.59559401]
[1758584607513,0.72,220.78,220.74,39.35021654]
[1758584607824,0.72,220.77,220.74,39.35021654]
[1758584608014,0.72,220.76,220.74,39.35021654]
[1758584608209,30.52879542,220.81,220.74,39.35021654]
[1758584608411,0.72,220.75,220.74,39.35021654]
[1758584608598,0.72,220.75,220.74,4.53021654]
[1758584609207,0.72,220.75,220.74,34.8]
[1758584609528,0.72,220.75,220.74,48.20702038]
[1758584610420,0.72,220.75,220.74,52.73723692]
[1758584616916,0.72,220.75,220.74,48.20702038]
[1758584618415,0.72,220.75,220.74,13.40702038]
[1758584618617,5.25001132,220.75,220.71,13.59559401]
[1758584618808,0.72,220.74,220.71,48.37559401]
[1758584619003,4.53001132,220.75,220.71,34.78]
[1758584619004,0.72,220.73,220.71,34.78]
[1758584619330,0.72,220.72,220.69,13.59559401]
[1758584619631,4.53001132,220.75,220.67,13.59559401]
[1758584619632,0.72,220.71,220.67,13.59559401]
[1758584619833,0.72,220.7,220.63,13.59559401]
[1758584620000,5.25135787,220.69,220.62,0.69]
[1758584620321,5.25135787,220.69,220.64,13.59559401]
[1758584620519,0.72,220.68,220.65,34.78]
[1758584620719,0.72,220.67,220.65,34.78]
[1758584621020,0.72,220.66,220.65,34.78]
[1758584621207,0.72,220.66,220.61,0.69]
[1758584621208,0.72,220.66,220.61,13.59559401]
[1758584621410,0.72,220.65,220.63,34.78]
[1758584622199,0.72,220.65,220.63,48.62372714]
[1758584623899,4.53083231,220.71,220.63,48.62372714]
[1758584624100,0.72,220.7,220.63,48.62372714]
[1758584624308,0.72,220.69,220.63,48.62372714]
[1758584625122,5.25163205,220.68,220.63,48.62372714]
[1758584625303,0.72,220.67,220.63,13.84372714]
[1758584625508,0.72,220.67,220.6,34.78]
[1758584625719,0.72,220.66,220.6,34.78]
[1758584625917,0.72,220.65,220.6,34.78]
[1758584626228,0.72,220.64,220.6,13.57748975]
[1758584626402,0.72,220.63,220.59,34.8]
[1758584627736,0.72,220.62,220.56,13.59559401]
[1758584628025,0.72,220.62,220.57,34.8]
[1758584628526,0.72,220.61,220.57,34.8]
[1758584628929,0.72,220.6,220.57,48.26499559]
[1758584629109,0.72,220.59,220.57,13.46499559]
[1758584629313,0.72,220.58,220.51,5.22480369]
[1758584629630,0.72,220.57,220.52,34.8]
[1758584629933,1.54790019,220.6,220.52,34.8]
[1758584629934,0.72,220.56,220.52,34.8]
[1758584630117,0.72,220.56,220.52,48.20405768]
[1758584630323,0.72,220.58,220.52,48.89405768]
[1758584630629,0.72,220.58,220.53,0.69]
[1758584630839,1.54790019,220.62,220.53,0.69]
[1758584631031,0.72,220.57,220.53,0.69]
[1758584631232,4.53321679,220.6,220.53,5.22442209]
[1758584631435,0.72,220.59,220.53,5.22442209]
[1758584632616,0.72,220.58,220.53,5.22442209]
[1758584633312,0.72,220.58,220.53,4.53442209]
[1758584633630,0.72,220.58,220.54,0.69]
[1758584634018,5.2530847,220.61,220.55,0.69]
[1758584634222,37.3315075,220.63,220.55,0.69]
[1758584634223,30.5326653,220.63,220.55,0.69]
[1758584634426,0.72,220.62,220.55,0.69]
[1758584635132,0.72,220.62,220.56,4.53391367]
[1758584636234,5.25272427,220.62,220.56,4.53391367]
[1758584636414,4.53272427,220.62,220.56,4.53391367]
[1758584636717,0.72,220.61,220.56,4.53391367]
[1758584636918,0.72,220.6,220.56,4.53391367]
[1758584639339,0.72,220.6,220.56,0.7]
[1758584639539,5.20272427,220.62,220.56,0.7]
[1758584640545,5.20272427,220.62,220.56,5.23383996]
[1758584640839,0.67,220.61,220.56,5.23383996]
[1758584641941,0.67,220.6,220.55,13.59559401]
[1758584642143,0.67,220.59,220.53,13.59559401]
[1758584642446,0.67,220.58,220.53,13.59559401]
[1758584642620,1.54790019,220.6,220.53,13.59559401]
[1758584642817,0.67,220.57,220.53,13.59559401]
[1758584643020,0.67,220.56,220.52,17.9386945]
[1758584643235,0.67,220.56,220.52,18.6386945]
[1758584644749,0.67,220.57,220.52,18.6386945]
[1758584645437,0.67,220.59,220.53,0.7]
[1758584645623,31.20281666,220.62,220.54,13.59559401]
[1758584645827,26.0,220.62,220.55,0.7]
[1758584646135,31.20269745,220.62,220.55,0.7]
[1758584647341,134.2,220.66,220.57,1.54790019]
[1758584647546,0.67,220.66,220.6,13.59559401]
[1758584647741,0.67,220.66,220.61,0.7]
[1758584648536,0.67,220.65,220.61,0.7]
[1758584648919,4.53174841,220.67,220.61,0.7]
[1758584649126,31.20174841,220.67,220.61,0.7]
[1758584649544,31.20174841,220.67,220.61,5.23282529]
[1758584649750,0.67,220.66,220.61,5.23282529]
[1758584650047,0.67,220.65,220.61,4.53282529]
[1758584651046,0.67,220.64,220.6,13.59559401]
[1758584651251,0.67,220.64,220.57,11.33382636]
[1758584651252,0.67,220.63,220.58,48.41559401]
[1758584651430,0.67,220.62,220.58,48.41559401]
[1758584651728,0.67,220.62,220.58,52.94903141]
[1758584653241,0.67,220.62,220.57,13.59559401]
[1758584653438,0.67,220.62,220.57,14.29559401]
[1758584653742,4.53248536,220.63,220.57,14.29559401]
[1758584653938,0.67,220.62,220.54,2.24790019]
[1758584654145,0.67,220.61,220.55,13.59559401]
[1758584654345,0.67,220.6,220.55,13.59559401]
[1758584654645,26.67,220.62,220.56,0.7]
[1758584655252,4.53288608,220.61,220.56,0.7]
[1758584655545,0.67,220.6,220.55,18.12971325]
[1758584655945,0.71,220.59,220.55,18.12971325]
[1758584656255,0.71,220.58,220.55,18.12971325]
[1758584656435,0.71,220.58,220.55,13.59559401]
[1758584657660,5.24289057,220.61,220.55,18.82968224]
[1758584659951,4.53289057,220.61,220.55,18.82968224]
[1758584660159,0.71,220.6,220.55,18.82968224]
[1758584660630,0.71,220.59,220.55,14.29559401]
[1758584660836,0.71,220.59,220.55,13.59559401]
[1758584661255,0.71,220.58,220.53,5.23434051]
[1758584662462,0.71,220.57,220.53,5.23434051]
[1758584663262,5.24347411,220.59,220.53,5.23434051]
[1758584663842,0.71,220.58,220.53,13.59559401]
[1758584664048,0.71,220.57,220.53,13.59559401]
[1758584664568,0.71,220.57,220.53,14.29559401]
[1758584664750,0.71,220.56,220.52,13.40405768]
[1758584664955,0.71,220.55,220.49,0.7]
[1758584665974,4.53432483,220.54,220.49,0.7]
[1758584666152,5.24432483,220.54,220.49,0.7]
[1758584668483,0.68,220.53,220.49,0.7]
[1758584668685,0.68,220.53,220.49,14.28834848]
[1758584668860,0.68,220.53,220.49,0.7]
[1758584669062,4.53370811,220.57,220.49,0.7]
[1758584669280,0.68,220.56,220.49,0.7]
[1758584671083,4.53411924,220.55,220.49,0.7]
[1758584671291,0.68,220.54,220.48,13.79559401]
[1758584671471,0.68,220.53,220.48,13.79559401]
[1758584671667,0.68,220.52,220.48,0.2]
[1758584672789,0.68,220.52,220.48,13.96871661]
[1758584672994,0.68,220.51,220.48,13.96871661]
[1758584673298,5.21470745,220.53,220.48,13.96871661]
[1758584673590,0.68,220.52,220.48,13.96871661]
[1758584674286,11.33529811,220.55,220.48,13.96871661]
[1758584674493,0.68,220.52,220.48,13.96871661]
[1758584675068,0.68,220.51,220.48,13.96871661]
[1758584678397,11.33529811,220.55,220.48,13.96871661]
[1758584678584,0.68,220.52,220.48,13.96871661]
[1758584679197,11.33529811,220.55,220.48,13.96871661]
[1758584679412,0.68,220.54,220.48,13.96871661]
[1758584679600,5.2146557,220.53,220.48,13.96871661]
[1758584679798,0.68,220.52,220.48,13.96871661]
[1758584680263,0.68,220.52,220.48,14.66871661]
[1758584681001,5.21350556,220.58,220.51,13.59559401]
[1758584681296,5.21350556,220.58,220.52,0.7]
[1758584681500,5.21327859,220.6,220.52,0.7]
[1758584681799,5.21327859,220.6,220.53,4.53453044]
[1758584681973,0.68,220.59,220.53,5.23453044]
[1758584682403,4.53327859,220.6,220.53,5.23453044]
[1758584682709,0.68,220.58,220.53,5.23453044]
[1758584682882,0.68,220.57,220.53,5.23453044]
[1758584685698,0.68,220.59,220.53,5.23453044]
[1758584685993,0.68,220.59,220.53,4.53453044]
[1758584686205,26.0,220.61,220.54,0.7]
[1758584686378,0.68,220.6,220.54,0.7]
[1758584686695,0.68,220.6,220.53,4.53453044]
[1758584686935,0.68,220.59,220.53,4.53453044]
[1758584687197,0.68,220.58,220.53,4.53453044]
[1758584687372,0.68,220.57,220.53,4.53453044]
[1758584687575,0.68,220.57,220.53,5.23453044]
[1758584691001,0.68,220.56,220.52,4.53473607]
[1758584691403,0.68,220.58,220.52,4.53473607]
[1758584691602,0.68,220.58,220.52,5.23473607]
[1758584693214,4.53333784,220.59,220.52,5.23473607]
[1758584693396,0.68,220.58,220.52,5.23473607]
[1758584693808,4.53309156,220.6,220.52,5.23473607]
[1758584693986,0.68,220.57,220.52,5.23473607]
[1758584694509,4.53309156,220.6,220.52,5.23473607]
[1758584694718,0.68,220.59,220.52,5.23473607]
[1758584694902,0.68,220.58,220.52,5.23473607]
[1758584695105,0.68,220.57,220.52,5.23473607]
[1758584695502,0.68,220.56,220.5,0.7]
[1758584696717,0.68,220.56,220.5,5.2350423]
[1758584698623,5.21392057,220.56,220.5,5.2350423]
[1758584699815,4.53370811,220.57,220.5,5.2350423]
[1758584700002,0.68,220.55,220.5,5.2350423]
[1758584700202,0.68,220.54,220.5,0.7]
[1758584700404,0.68,220.54,220.48,13.96871661]
[1758584700635,26.68,220.53,220.48,13.96871661]
[1758584700812,0.68,220.52,220.48,13.96871661]
[1758584701128,0.68,220.52,220.48,14.64871661]
[1758584701507,4.53370811,220.57,220.5,13.59559401]
[1758584701717,26.0,220.57,220.51,0.68]
[1758584702038,26.68,220.57,220.51,5.21483509]
[1758584702526,26.68,220.57,220.52,0.68]
[1758584702721,26.0,220.57,220.52,0.68]
[1758584702911,26.0,220.57,220.5,14.27559401]
[1758584702912,0.68,220.56,220.5,14.27559401]
[1758584704524,0.68,220.56,220.51,5.21494172]
[1758584706622,0.68,220.56,220.51,4.53494172]
[1758584706828,26.0,220.57,220.52,0.68]
[1758584707011,26.0,220.57,220.51,4.53494172]
[1758584707212,26.68,220.57,220.52,0.68]
[1758584707413,0.68,220.56,220.52,0.68]
[1758584707829,0.68,220.59,220.53,0.68]
[1758584708031,3.73502207,220.59,220.53,0.68]
[1758584708431,0.68,220.59,220.53,0.68]
[1758584708932,0.68,220.59,220.54,4.53432483]
[1758584709129,134.2,220.6,220.54,5.21432483]
[1758584709327,0.68,220.58,220.54,5.21432483]
[1758584709528,134.88,220.6,220.55,0.68]
[1758584709739,0.68,220.59,220.55,0.68]
[1758584709921,0.68,220.59,220.54,4.53432483]
[1758584710127,0.68,220.58,220.52,4.53460343]
[1758584710426,0.68,220.57,220.52,4.53460343]
[1758584710622,26.68,220.57,220.49,48.35559401]
[1758584710820,8.26983516,220.56,220.48,13.96871661]
[1758584711022,3.73592149,220.55,220.48,13.96871661]
[1758584711327,26.0,220.53,220.48,13.96871661]
[1758584711525,0.68,220.52,220.48,13.96871661]
[1758584711714,0.68,220.51,220.48,13.96871661]
[1758584711915,0.68,220.5,220.48,0.2]
[1758584712742,3.73612748,220.5,220.48,0.2]
[1758584713239,4.53535307,220.49,220.48,0.2]
[1758584713628,5.21535307,220.49,220.48,0.2]
[1758584713828,0.68,220.49,220.48,0.2]
[1758584717349,26.0,220.53,220.48,0.92]
[1758584717551,5.23452848,220.54,220.48,5.45546344]
[1758584718223,4.53452848,220.54,220.48,5.45546344]
[1758584718426,0.7,220.53,220.48,5.45546344]
[1758584718738,0.7,220.52,220.48,0.2]
[1758584718943,5.23491437,220.52,220.48,0.2]
[1758584719843,5.23491437,220.52,220.41,37.22455366]
[1758584719844,28.42455366,220.49,220.36,0.92]
[1758584720043,28.42455366,220.49,220.36,0.2]
[1758584720044,2.42455366,220.43,220.36,0.2]
[1758584720229,0.7,220.42,220.36,0.2]
[1758584720844,0.7,220.42,220.36,4.73797321]
[1758584721351,0.7,220.41,220.36,4.73797321]
[1758584721755,0.7,220.41,220.36,5.45797321]
[1758584725053,0.7,220.41,220.36,18.75731355]
[1758584725545,0.7,220.4,220.36,13.49934034]
[1758584725761,4.53681249,220.42,220.36,13.49934034]
[1758584725762,0.7,220.39,220.36,13.49934034]
[1758584725930,4.53681249,220.42,220.36,18.03735943]
[1758584726233,0.7,220.41,220.36,18.03735943]
[1758584726648,0.7,220.4,220.36,18.03735943]
[1758584726948,0.7,220.44,220.37,0.72]
[1758584727427,0.7,220.44,220.38,4.53761684]
[1758584727628,0.7,220.44,220.38,5.25761684]
[1758584730241,5.23645712,220.44,220.38,5.25761684]
[1758584730750,5.23645712,220.44,220.36,13.49934034]
[1758584730751,0.72,220.43,220.36,18.75719241]
[1758584731366,0.72,220.42,220.36,18.75719241]
[1758584731542,26.0,220.42,220.37,0.72]
[1758584732143,26.0,220.42,220.38,4.53761684]
[1758584732344,26.0,220.42,220.39,0.72]
[1758584733165,35.56,220.45,220.4,0.72]
[1758584733357,182.69977358,220.46,220.41,0.72]
[1758584733558,183.41977358,220.46,220.41,0.72]
[1758584733863,0.72,220.45,220.41,0.72]
[1758584734265,0.72,220.45,220.41,5.2569888]
[1758584734857,0.72,220.45,220.41,4.5369888]
[1758584735255,0.72,220.45,220.4,4.53720508]
[1758584735437,0.72,220.45,220.4,5.25720508]
[1758584736659,0.72,220.45,220.4,4.53720508]
[1758584736866,0.72,220.45,220.41,0.72]
[1758584737449,0.72,220.45,220.39,0.72]
[1758584737642,0.72,220.45,220.4,0.72]
[1758584738464,134.2,220.46,220.41,0.72]
[1758584738847,134.2,220.46,220.38,13.59559401]
[1758584739049,134.2,220.46,220.42,0.72]
[1758584739370,134.92,220.46,220.42,0.72]
[1758584740574,0.72,220.45,220.39,16.60093833]
[1758584741471,0.72,220.45,220.39,5.25741095]
[1758584743372,134.2,220.46,220.4,0.72]
[1758584744572,134.92,220.46,220.4,0.72]
[1758584746774,134.92,220.46,220.41,4.53699922]
[1758584746954,0.72,220.45,220.41,4.53699922]
[1758584747366,0.72,220.45,220.41,5.25699922]
[1758584747766,0.72,220.44,220.41,4.53699922]
[1758584748971,0.72,220.44,220.4,18.13279909]
[1758584749171,0.72,220.44,220.4,18.85279909]
[1758584751475,0.72,220.43,220.4,4.53720508]
[1758584751774,0.72,220.43,220.38,0.72]
[1758584751968,0.72,220.43,220.39,0.72]
[1758584752375,134.92,220.46,220.4,0.72]
[1758584752674,134.2,220.46,220.4,14.31559401]
[1758584752866,11.33560729,220.55,220.41,0.72]
[1758584752867,0.72,220.48,220.41,0.72]
[1758584753074,0.72,220.47,220.41,2.27362074]
[1758584753267,0.72,220.47,220.42,0.72]
[1758584753459,0.72,220.47,220.44,4.53638178]
[1758584756178,26.72,220.51,220.45,0.72]
[1758584756480,3.05283002,220.5,220.45,0.72]
[1758584756675,0.72,220.5,220.44,4.53638178]
[1758584756876,3.77283002,220.52,220.46,0.72]
[1758584757584,3.77283002,220.52,220.44,15.87733623]
[1758584757585,8.30757195,220.52,220.44,4.53638178]
[1758584757769,0.67,220.51,220.44,4.53638178]
[1758584757973,0.67,220.5,220.44,4.53638178]
[1758584758766,0.67,220.5,220.44,14.28559401]
[1758584759783,0.67,220.5,220.45,4.536176]
[1758584760081,0.67,220.49,220.45,5.226176]
[1758584760386,7.58757195,220.52,220.45,5.226176]
[1758584760387,3.05283002,220.52,220.46,0.69]
[1758584761189,0.67,220.52,220.47,4.5357645]
[1758584761368,0.67,220.51,220.47,4.5357645]
[1758584761886,169.67,220.53,220.47,5.2257645]
[1758584762060,169.0,220.53,220.47,5.2257645]
[1758584762264,0.67,220.52,220.47,5.2257645]
[1758584762473,0.67,220.51,220.47,5.2257645]
[1758584764591,169.67,220.53,220.48,0.69]
[1758584764772,0.67,220.52,220.48,0.69]
[1758584765273,169.0,220.53,220.49,0.69]
[1758584765469,169.67,220.53,220.45,15.876616]